bitfinex-derivatives/quotes_BNBF0:USTF0_20250406
["timestamp","ask_amount","ask_price","bid_price","bid_amount"]
[1743981870916,2.097,545.57,544.87,1.34059377]
[1743981871119,2.097,545.57,544.88,0.29314818]
[1743981871515,2.097,545.57,544.89,0.29314818]
[1743981871722,2.097,545.57,544.9,0.29314818]
[1743981871921,2.097,545.57,544.91,0.29314818]
[1743981872119,2.097,545.57,544.87,1.34059377]
[1743981872317,2.097,545.57,544.88,0.29288337]
[1743981872522,2.097,545.57,544.89,0.29288337]
[1743981872823,2.097,545.57,544.9,0.29288337]
[1743981873117,2.097,545.57,544.91,0.29288337]
[1743981873318,2.097,545.57,544.92,0.29288337]
[1743981873617,2.097,545.57,544.93,0.29288337]
[1743981873822,2.097,545.57,544.94,0.2928586]
[1743981874020,2.097,545.57,544.95,0.2928586]
[1743981874221,0.655,545.57,544.96,0.2928586]
[1743981874419,0.655,545.57,544.97,0.2928586]
[1743981874621,0.655,545.57,544.81,0.2928586]
[1743981874921,0.655,545.57,544.82,0.2928586]
[1743981875122,0.655,545.57,544.83,0.2928586]
[1743981875323,0.655,545.57,544.84,0.2928586]
[1743981875622,0.655,545.57,544.75,0.2928586]
[1743981875820,0.655,545.57,544.76,0.2928586]
[1743981876018,1.329,545.57,544.77,0.2928586]
[1743981876219,1.329,545.57,544.78,0.2928586]
[1743981876417,1.329,545.57,544.79,0.2928586]
[1743981876623,1.329,545.57,544.8,0.2928586]
[1743981876824,1.329,545.57,544.81,0.2928586]
[1743981877019,1.329,545.57,544.82,0.2928586]
[1743981877219,1.329,545.57,544.83,0.2928586]
[1743981877423,1.329,545.57,544.84,0.2928586]
[1743981877623,1.329,545.57,544.85,0.2928586]
[1743981877826,1.329,545.57,544.86,0.2928586]
[1743981878122,1.329,545.57,544.87,0.2928586]
[1743981878323,1.329,545.57,544.88,0.2928586]
[1743981878524,1.329,545.57,544.89,0.2928586]
[1743981878719,1.329,545.57,544.9,0.65989842]
[1743981878920,1.329,545.57,544.91,0.2928586]
[1743981879125,1.329,545.57,544.92,0.2928586]
[1743981879325,1.329,545.57,544.93,0.2928586]
[1743981879523,1.329,545.57,544.94,0.2928586]
[1743981879726,1.329,545.57,544.95,0.2928586]
[1743981879928,1.329,545.57,544.96,0.65985801]
[1743981880126,1.329,545.57,544.97,0.2928586]
[1743981880427,1.329,545.57,544.98,0.2928586]
[1743981880727,1.329,545.57,544.99,0.2928586]
[1743981880923,1.329,545.57,545.0,0.2928586]
[1743981881122,1.329,545.57,545.01,0.2928586]
[1743981881325,1.329,545.57,545.02,0.65981761]
[1743981881522,1.329,545.57,545.03,0.2928586]
[1743981881729,1.329,545.57,545.04,0.2928586]
[1743981881929,1.329,545.57,545.03,0.2928586]
[1743981882730,1.329,545.57,545.04,0.2928586]
[1743981882929,1.329,545.57,545.05,0.2928586]
[1743981883229,1.329,545.57,545.06,0.2928586]
[1743981883430,1.329,545.57,545.07,0.2928586]
[1743981883626,1.329,545.57,545.08,0.2928586]
[1743981883833,1.329,545.57,545.09,0.65977048]
[1743981884025,1.329,545.57,545.09,0.36691188]
[1743981884230,1.329,545.57,545.1,0.29281185]
[1743981884431,1.329,545.57,545.11,0.29281185]
[1743981884634,1.329,545.57,545.12,0.29281185]
[1743981884833,1.329,545.57,545.13,0.65969681]
[1743981885033,1.329,545.57,545.14,0.29281185]
[1743981885233,1.329,545.57,545.15,0.65968335]
[1743981885433,1.329,545.57,545.16,0.29281185]
[1743981885831,1.329,545.57,545.15,0.3668715]
[1743981886028,1.329,545.57,545.16,0.29288697]
[1743981886830,1.329,545.57,545.17,0.36685804]
[1743981887033,1.329,545.57,545.18,0.29288697]
[1743981887434,1.329,545.57,545.17,0.36685804]
[1743981887633,1.329,545.57,545.18,0.29289895]
[1743981887829,1.329,545.57,545.19,0.36684458]
[1743981888034,1.329,545.57,545.2,0.29289895]
[1743981888832,1.329,545.57,545.21,0.29289895]
[1743981889032,1.329,545.57,545.19,0.36684458]
[1743981889230,1.329,545.57,545.2,0.2928845]
[1743981889536,1.329,545.57,545.21,0.36683112]
[1743981889740,1.329,545.57,545.22,0.2928845]
[1743981890233,1.329,545.57,545.23,0.36681767]
[1743981890439,1.329,545.57,545.24,0.2928845]
[1743981891034,1.329,545.57,545.25,0.36680421]
[1743981891240,0.674,545.57,545.26,0.2928845]
[1743981891440,0.674,545.57,545.27,0.36679076]
[1743981891640,0.674,545.57,545.28,0.2928845]
[1743981891941,0.674,545.57,545.29,0.36677731]
[1743981892235,0.674,545.57,545.3,0.2928845]
[1743981892443,0.674,545.57,545.31,0.36676385]
[1743981892641,0.674,545.57,545.32,0.2928845]
[1743981892839,0.674,545.57,545.33,0.3667504]
[1743981893041,0.674,545.57,545.34,0.2928845]
[1743981893445,0.674,545.57,545.35,0.36673695]
[1743981893643,0.674,545.57,545.36,0.2928845]
[1743981894142,0.674,545.57,545.35,0.36673695]
[1743981894344,0.674,545.57,545.37,0.29290813]
[1743981894536,0.674,545.57,545.36,0.29290813]
[1743981894741,0.674,545.57,545.37,0.29290813]
[1743981894941,0.674,545.57,545.35,0.36673695]
[1743981895141,0.674,545.57,545.36,0.29289772]
[1743981896444,0.674,545.57,545.37,0.3667235]
[1743981898152,0.674,545.57,545.38,0.29300278]
[1743981898349,0.674,545.57,545.39,0.36671006]
[1743981898553,0.674,545.57,545.4,0.29300278]
[1743981900958,0.674,545.57,545.39,0.36671006]
[1743981901159,0.674,545.57,545.4,0.2927992]
[1743981903862,0.674,545.57,545.39,0.36671006]
[1743981904061,0.674,545.57,545.4,0.29273104]
[1743981905557,0.674,545.57,545.39,0.36671006]
[1743981905756,0.674,545.57,545.4,0.29283019]
[1743981909665,0.674,545.57,545.41,0.36669661]
[1743981909865,0.674,545.57,545.42,0.29283019]
[1743981910666,0.674,545.57,545.43,0.36668316]
[1743981911059,0.674,545.57,545.44,0.29283019]
[1743981912367,0.674,545.57,545.45,0.29288661]
[1743981912569,0.674,545.57,545.44,0.29288661]
[1743981913271,1.038,545.68,545.44,0.29288661]
[1743981918767,1.038,545.68,545.45,0.36666972]
[1743981918971,1.038,545.68,545.46,0.29288661]
[1743981919173,1.038,545.68,545.47,0.29294997]
[1743981919473,1.038,545.68,545.45,0.36666972]
[1743981921470,1.479,545.82,545.45,0.36666972]
[1743981921667,1.479,545.82,545.46,0.2930015]
[1743981921869,1.479,545.82,545.47,0.36665627]
[1743981922068,1.479,545.82,545.48,0.2930015]
[1743981922569,1.479,545.82,545.49,0.29288519]
[1743981922767,1.479,545.82,545.48,0.29288519]
[1743981922971,1.479,545.82,545.49,0.36664283]
[1743981923174,1.479,545.82,545.5,0.29288519]
[1743981924175,1.479,545.82,545.49,0.36664283]
[1743981924973,1.479,545.82,545.5,0.29294616]
[1743981926775,1.479,545.82,545.49,0.36664283]
[1743981929179,1.479,545.82,545.5,0.29296205]
[1743981929880,1.479,545.82,545.49,0.36664283]
[1743981930076,1.479,545.82,545.5,0.29297408]
[1743981930273,1.479,545.82,545.51,0.36662939]
[1743981930477,1.479,545.82,545.52,0.29297408]
[1743981930980,1.479,545.82,545.51,0.36662939]
[1743981931176,1.479,545.82,545.52,0.29295793]
[1743981931679,1.479,545.82,545.53,0.36661595]
[1743981931874,1.479,545.82,545.54,0.29295793]
[1743981932073,1.479,545.82,545.55,0.36660251]
[1743981932277,1.479,545.82,545.56,0.29295793]
[1743981932479,1.479,545.82,545.55,0.36660251]
[1743981934481,0.79,545.82,545.55,0.36660251]
[1743981934876,0.79,545.82,545.56,0.29292322]
[1743981935078,0.79,545.82,545.55,0.36660251]
[1743981935983,0.79,545.82,545.56,0.29298025]
[1743981938386,0.79,545.82,545.55,0.36660251]
[1743981938588,0.79,545.82,545.56,0.29294733]
[1743981939280,0.79,545.82,545.57,0.29280193]
[1743981939485,0.79,545.82,545.56,0.29280193]
[1743981939687,0.79,545.82,545.57,0.29280193]
[1743981939891,0.79,545.82,545.56,0.29280193]
[1743981940086,0.79,545.82,545.57,0.29280193]
[1743981940390,0.79,545.82,545.56,0.29280193]
[1743981942688,0.79,545.82,545.55,0.36660251]
[1743981942894,0.79,545.82,545.56,0.29274961]
[1743981944187,0.79,545.82,545.55,0.36660251]
[1743981944388,0.79,545.82,545.57,0.29287026]
[1743981944692,0.79,545.82,545.58,0.29287026]
[1743981944887,0.79,545.82,545.56,0.29287026]
[1743981946098,0.79,545.82,545.57,0.36658907]
[1743981946291,0.79,545.82,545.58,0.29287026]
[1743981946496,0.79,545.82,545.59,0.36657563]
[1743981946798,0.79,545.82,545.6,0.29287026]
[1743981946997,0.79,545.82,545.61,0.36656219]
[1743981947199,0.79,545.82,545.62,0.29287026]
[1743981948799,0.79,545.82,545.63,0.36654876]
[1743981948999,0.79,545.82,545.64,0.29287026]
[1743981949196,0.79,545.82,545.63,0.36654876]
[1743981950806,0.79,545.82,545.64,0.29285124]
[1743981951203,0.79,545.82,545.65,0.36653532]
[1743981951400,0.79,545.82,545.66,0.29285124]
[1743981951600,0.79,545.82,545.67,0.36652189]
[1743981951803,0.79,545.82,545.68,0.29285124]
[1743981952405,0.79,545.82,545.69,0.36650845]
[1743981952803,0.79,545.82,545.7,0.29279183]
[1743981952999,0.79,545.82,545.71,0.36649502]
[1743981953306,0.79,545.82,545.72,0.29279183]
[1743981953604,0.79,545.82,545.73,0.36648159]
[1743981953805,0.79,545.82,545.74,0.29279183]
[1743981954105,0.79,545.82,545.75,0.36646816]
[1743981954306,0.79,545.82,545.76,0.29279183]
[1743981954507,0.79,545.82,545.77,0.36645473]
[1743981954704,0.79,545.82,545.78,0.29279183]
[1743981954909,0.79,545.82,545.79,0.3664413]
[1743981958314,0.79,545.82,545.8,0.29280857]
[1743981958723,0.79,545.82,545.81,0.36642787]
[1743981959017,0.79,545.82,545.81,0.6591597]
[1743981960515,0.79,545.82,545.81,0.36642787]
[1743981960718,0.79,545.82,545.81,0.65905358]
[1743981961518,0.17160424,545.82,545.81,0.65905358]
[1743981961719,0.914,545.94,545.81,0.65905358]
[1743981961921,0.914,545.94,545.82,0.29262571]
[1743981963018,0.43461384,545.94,545.82,0.29262571]
[1743981963215,1.614,546.2,545.83,0.29262571]
[1743981963620,1.614,546.2,545.84,0.29262571]
[1743981963920,1.614,546.2,545.85,0.29262571]
[1743981964220,1.614,546.2,545.86,0.29262571]
[1743981964526,1.614,546.2,545.87,0.29262571]
[1743981964714,1.614,546.2,545.88,0.29262571]
[1743981964915,1.614,546.2,545.81,0.36642787]
[1743981965118,1.614,546.2,545.82,0.2922577]
[1743981965314,1.614,546.2,545.83,0.2922577]
[1743981965514,1.614,546.2,545.84,0.2922577]
[1743981965716,1.614,546.2,545.85,0.2922577]
[1743981965914,1.614,546.2,545.86,0.2922577]
[1743981966117,1.614,546.2,545.87,0.2922577]
[1743981966318,1.614,546.2,545.88,0.2922577]
[1743981966519,1.614,546.2,545.89,0.2922577]
[1743981966714,1.614,546.2,545.9,0.2922577]
[1743981966912,1.614,546.2,545.91,0.2922577]
[1743981967117,1.614,546.2,545.92,0.2922577]
[1743981967318,1.614,546.2,545.93,0.2922577]
[1743981967519,1.614,546.2,545.94,0.2922577]
[1743981967815,1.614,546.2,545.95,0.2922577]
[1743981968019,0.807,546.99,545.96,0.2922577]
[1743981968220,0.807,546.99,545.98,0.36631378]
[1743981968617,0.807,546.99,545.99,0.2922577]
[1743981968920,0.807,546.99,546.01,0.36629365]
[1743981969118,0.807,546.99,546.02,0.2922577]
[1743981970412,0.917,546.98,546.02,0.2922577]
[1743981970816,0.979,546.97,546.02,0.2922577]
[1743981972017,0.979,546.97,546.04,0.36627353]
[1743981972221,0.979,546.97,546.05,0.2922577]
[1743981972621,0.796,546.96,546.05,0.2922577]
[1743981973315,0.796,546.96,546.07,0.36625341]
[1743981973622,0.796,546.96,546.08,0.2922577]
[1743981973815,0.796,546.96,546.1,0.36623329]
[1743981974015,0.796,546.96,546.11,0.2922577]
[1743981974213,0.796,546.96,546.13,0.36621317]
[1743981974414,0.796,546.96,546.14,0.2922577]
[1743981974714,0.796,546.96,546.16,0.36619305]
[1743981974914,0.796,546.96,546.17,0.2922577]
[1743981975115,0.796,546.96,546.18,0.36617964]
[1743981975318,0.796,546.96,546.19,0.2922577]
[1743981976816,0.796,546.96,546.2,0.2919822]
[1743981977123,0.796,546.96,546.21,0.2919822]
[1743981977322,0.796,546.96,546.19,0.2919822]
[1743981977623,0.796,546.96,546.18,0.36617964]
[1743981977819,0.796,546.96,546.19,0.29197314]
[1743981978017,0.796,546.96,546.2,0.29197314]
[1743981978218,0.796,546.96,546.21,0.29197314]
[1743981978419,0.796,546.96,546.18,0.36617964]
[1743981978621,0.796,546.96,546.19,0.29193163]
[1743981978923,0.796,546.96,546.2,0.29193163]
[1743981979122,0.796,546.96,546.21,0.29193163]
[1743981979319,0.796,546.96,546.22,0.29193163]
[1743981979524,0.796,546.96,546.23,0.29193163]
[1743981979724,0.796,546.96,546.24,0.29193163]
[1743981979924,0.796,546.96,546.25,0.29193163]
[1743981980124,0.796,546.96,546.18,0.36617964]
[1743981980325,0.796,546.96,546.19,0.29199913]
[1743981980525,0.796,546.96,546.2,0.29199913]
[1743981980725,0.796,546.96,546.21,0.29199913]
[1743981980925,0.796,546.96,546.22,0.29199913]
[1743981981121,0.796,546.96,546.23,0.29199913]
[1743981981323,0.796,546.96,546.24,0.29199913]
[1743981981520,0.796,546.96,546.19,0.29199913]
[1743981981723,0.796,546.96,546.18,0.36617964]
[1743981981925,0.796,546.96,546.19,0.29201205]
[1743981982126,0.796,546.96,546.2,0.29201205]
[1743981982322,0.796,546.96,546.19,0.29201205]
[1743981982625,0.796,546.96,546.2,0.29201205]
[1743981982826,0.796,546.96,546.21,0.29201205]
[1743981983025,0.796,546.96,546.19,0.29201205]
[1743981983228,0.796,546.96,546.18,0.36617964]
[1743981983430,0.796,546.96,546.19,0.29202291]
[1743981983927,0.796,546.96,546.2,0.29202291]
[1743981984125,0.796,546.96,546.21,0.29202291]
[1743981984422,0.796,546.96,546.22,0.29202291]
[1743981984631,0.796,546.96,546.23,0.29202291]
[1743981984828,0.796,546.96,546.19,0.29202291]
[1743981985129,0.796,546.96,546.2,0.29202291]
[1743981985328,0.796,546.96,546.21,0.29202291]
[1743981985521,0.796,546.96,546.22,0.29202291]
[1743981985726,0.796,546.96,546.23,0.29202291]
[1743981985925,0.796,546.96,546.24,0.29202291]
[1743981986131,0.796,546.96,546.25,0.29202291]
[1743981986429,0.796,546.96,546.26,0.29202291]
[1743981986622,0.796,546.96,546.18,0.36617964]
[1743981986826,0.796,546.96,546.19,0.29216143]
[1743981988123,0.796,546.96,546.18,0.36617964]
[1743981988430,0.796,546.96,546.19,0.29211011]
[1743981988629,0.796,546.96,546.2,0.29211011]
[1743981988929,0.796,546.96,546.21,0.29211011]
[1743981989123,0.796,546.96,546.22,0.29211011]
[1743981989328,0.796,546.96,546.23,0.29211011]
[1743981989628,0.796,546.96,546.24,0.29211011]
[1743981989829,0.796,546.96,546.25,0.29211011]
[1743981990030,0.796,546.96,546.26,0.29207003]
[1743981990329,0.796,546.96,546.27,0.29207003]
[1743981990529,0.796,546.96,546.28,0.29207003]
[1743981990729,0.796,546.96,546.19,0.29207003]
[1743981990930,0.796,546.96,546.2,0.29207003]
[1743981991330,0.796,546.96,546.21,0.29207003]
[1743981991528,0.796,546.96,546.18,0.36617964]
[1743981991731,0.796,546.96,546.19,0.29199759]
[1743981992031,0.796,546.96,546.2,0.29199759]
[1743981992232,0.796,546.96,546.21,0.29199759]
[1743981992433,0.796,546.96,546.22,0.29199759]
[1743981992633,0.796,546.96,546.23,0.29199759]
[1743981992935,0.796,546.96,546.24,0.29199759]
[1743981993134,0.796,546.96,546.18,0.36617964]
[1743981993433,0.796,546.96,546.19,0.29194136]
[1743981993628,0.796,546.96,546.2,0.29194136]
[1743981993828,0.796,546.96,546.21,0.29194136]
[1743981994033,0.796,546.96,546.22,0.29194136]
[1743981994233,0.796,546.96,546.23,0.65808748]
[1743981994431,0.796,546.96,546.24,0.65808078]
[1743981994742,0.796,546.96,546.25,0.29194136]
[1743981994935,0.796,546.96,546.26,0.29194136]
[1743981995134,0.796,546.96,546.27,0.29194136]
[1743981995333,0.796,546.96,546.28,0.29194136]
[1743981995529,0.796,546.96,546.29,0.29194136]
[1743981995729,0.796,546.96,546.3,0.29194136]
[1743981995931,0.796,546.96,546.25,0.29194136]
[1743981996236,0.796,546.96,546.24,0.36613942]
[1743981996237,0.796,546.96,546.26,0.29194136]
[1743981996435,0.796,546.96,546.24,0.36613942]
[1743981996629,0.796,546.96,546.25,0.29197124]
[1743981996830,0.796,546.96,546.26,0.29197124]
[1743981997029,0.796,546.96,546.27,0.29197124]
[1743981997232,0.796,546.96,546.28,0.29197124]
[1743981997430,0.796,546.96,546.29,0.29197124]
[1743981997635,0.796,546.96,546.3,0.29197124]
[1743981997929,0.796,546.96,546.31,0.29197124]
[1743981998129,0.958,546.95,546.32,0.29209267]
[1743981998334,0.958,546.95,546.33,0.29209267]
[1743981998635,0.958,546.95,546.34,0.29209267]
[1743981998830,0.958,546.95,546.35,0.29209267]
[1743981999033,0.958,546.95,545.93,1.34059377]
[1743981999034,0.958,546.95,546.36,0.65815167]
[1743981999233,0.958,546.95,546.37,0.29209267]
[1743981999437,0.958,546.95,546.38,0.65813827]
[1743981999737,0.958,546.95,546.39,0.65813157]
[1743981999937,0.958,546.95,546.4,0.29209267]
[1743982000139,0.958,546.95,546.41,0.29209267]
[1743982000332,0.958,546.95,546.42,0.29209267]
[1743982000532,0.958,546.95,546.43,0.29209267]
[1743982000738,0.958,546.95,546.44,0.29209267]
[1743982000938,0.958,546.95,546.45,0.29209267]
[1743982001240,0.958,546.95,546.46,0.29209267]
[1743982001538,0.958,546.95,546.47,0.29209267]
[1743982001740,0.958,546.95,546.48,0.29209267]
[1743982001941,0.958,546.95,546.49,0.29209267]
[1743982002139,0.958,546.95,546.5,0.29209267]
[1743982002439,0.958,546.95,546.51,0.29209267]
[1743982002642,0.958,546.95,546.52,0.29209267]
[1743982002838,0.958,546.95,546.39,1.70663267]
[1743982002839,0.958,546.95,546.53,0.29209267]
[1743982003037,0.958,546.95,546.5,0.29209267]
[1743982003643,0.958,546.95,546.51,0.36595853]
[1743982003942,0.958,546.95,546.52,0.29209267]
[1743982004839,0.958,546.95,546.51,0.36595853]
[1743982005041,0.958,546.95,546.52,0.29189914]
[1743982005341,0.958,546.95,546.53,0.65784428]
[1743982005542,0.958,546.95,546.54,0.29189914]
[1743982005740,0.958,546.95,546.55,0.29189914]
[1743982005936,0.958,546.95,546.56,0.29189914]
[1743982006139,0.958,546.95,546.57,0.6578175]
[1743982006336,0.958,546.95,546.58,0.6578108]
[1743982006535,0.958,546.95,546.59,0.29182832]
[1743982006737,0.958,546.95,546.6,0.6577266]
[1743982006939,0.958,546.95,546.61,0.29182832]
[1743982007141,0.958,546.95,546.62,0.29182832]
[1743982007340,0.958,546.95,546.63,0.29182832]
[1743982007543,0.813,547.05,546.64,0.29182832]
[1743982007743,0.813,547.05,546.65,0.29182832]
[1743982008051,0.91,547.11,546.66,0.29182832]
[1743982008248,0.91,547.11,546.67,0.29182832]
[1743982008547,0.91,547.11,546.68,0.29182832]
[1743982008849,0.91,547.11,546.69,0.29182832]
[1743982009048,0.91,547.11,546.7,0.29182832]
[1743982009249,0.91,547.11,546.71,0.29182832]
[1743982009444,0.91,547.11,546.72,0.29182832]
[1743982009644,0.91,547.11,546.73,0.29182832]
[1743982009848,0.91,547.11,546.67,1.34059377]
[1743982009849,0.91,547.11,546.74,0.29182832]
[1743982010046,0.687,547.19,546.68,0.29182832]
[1743982010251,0.687,547.19,546.69,0.65766636]
[1743982010452,0.687,547.19,546.7,0.29182832]
[1743982010847,0.687,547.19,546.71,0.65765298]
[1743982011053,0.687,547.19,546.73,1.34059377]
[1743982011349,0.687,547.19,546.74,0.36580458]
[1743982011653,0.687,547.19,546.75,0.29183462]
[1743982012552,0.687,547.19,546.76,0.29183462]
[1743982012750,0.687,547.19,546.77,0.29183462]
[1743982012950,0.687,547.19,546.74,0.36580458]
[1743982013147,0.687,547.19,546.75,0.29177624]
[1743982013345,0.687,547.19,546.76,0.29177624]
[1743982013549,0.687,547.19,546.77,0.29177624]
[1743982013751,0.687,547.19,546.78,0.29177624]
[1743982014045,0.966,547.29,546.75,0.29177624]
[1743982014353,0.966,547.29,546.76,0.65756744]
[1743982014554,0.966,547.29,546.77,0.29177624]
[1743982014748,0.966,547.29,546.78,0.65755406]
[1743982014949,0.966,547.29,546.79,0.29177624]
[1743982015150,0.966,547.29,546.8,0.65754068]
[1743982015352,0.966,547.29,546.81,0.29177624]
[1743982015553,0.966,547.29,546.82,0.36575106]
[1743982015853,0.966,547.29,546.83,0.29177624]
[1743982016052,0.966,547.29,546.84,0.36573769]
[1743982016248,0.966,547.29,546.85,0.29177624]
[1743982016452,0.966,547.29,546.86,0.29177624]
[1743982016654,0.966,547.29,546.87,0.29177624]
[1743982016849,0.966,547.29,546.85,0.29177624]
[1743982017054,0.966,547.29,546.86,0.29177624]
[1743982017252,0.966,547.29,546.85,0.29177624]
[1743982017450,0.966,547.29,546.86,0.65750055]
[1743982017653,0.966,547.29,546.87,0.29177624]
[1743982017855,0.966,547.29,546.88,0.65748718]
[1743982018155,0.966,547.29,546.86,0.36572431]
[1743982018156,0.966,547.29,546.89,0.65748049]
[1743982018353,0.966,547.29,546.9,0.6574738]
[1743982018656,0.966,547.29,546.91,0.29177624]
[1743982018849,0.966,547.29,546.92,0.29177624]
[1743982019052,0.966,547.29,546.93,0.29177624]
[1743982019257,0.966,547.29,546.94,0.65744706]
[1743982019455,0.966,547.29,546.95,0.65744037]
[1743982019650,0.966,547.29,546.95,0.36566413]
[1743982019853,0.966,547.29,546.96,0.29173516]
[1743982021050,0.966,547.29,546.95,0.36566413]
[1743982021255,0.966,547.29,546.97,0.36565076]
[1743982021550,0.966,547.29,546.98,0.29172789]
[1743982021753,0.966,547.29,546.99,0.65736528]
[1743982021951,0.966,547.29,547.0,0.29172789]
[1743982022150,0.966,547.29,547.01,0.29172789]
[1743982022453,0.966,547.29,546.99,0.36563739]
[1743982022754,0.966,547.29,547.0,0.29167473]
[1743982023056,0.966,547.29,546.99,0.36563739]
[1743982023256,0.966,547.29,547.0,0.29169473]
[1743982023457,0.966,547.29,547.01,0.29169473]
[1743982023658,0.966,547.29,547.01,0.65731875]
[1743982023856,0.966,547.29,547.02,0.29169473]
[1743982024156,0.966,547.29,547.03,0.36561066]
[1743982024359,0.966,547.29,547.04,0.2916865]
[1743982024558,0.966,547.29,547.05,0.65728379]
[1743982024763,0.966,547.29,547.06,0.65727711]
[1743982024951,0.966,547.29,547.07,0.65727042]
[1743982025156,0.966,547.29,547.08,0.2916865]
[1743982025358,0.966,547.29,547.09,0.2916865]
[1743982025559,0.966,547.29,547.1,0.2916865]
[1743982025760,0.966,547.29,547.08,1.34059377]
[1743982025961,0.838,547.48,547.09,0.65719424]
[1743982026162,0.838,547.48,547.1,0.65718756]
[1743982026461,0.838,547.48,547.11,0.29162368]
[1743982026760,0.838,547.48,547.12,0.29162368]
[1743982026962,0.838,547.48,547.11,0.29162368]
[1743982027160,0.838,547.48,547.12,0.29162368]
[1743982027456,0.838,547.48,547.13,0.29167525]
[1743982027656,0.838,547.48,547.14,0.29167525]
[1743982027860,0.838,547.48,547.15,0.29167525]
[1743982028063,0.838,547.48,547.16,0.29167525]
[1743982028255,0.838,547.48,547.17,0.29167525]
[1743982028456,0.838,547.48,547.18,0.29167525]
[1743982028661,0.838,547.48,547.11,0.29167525]
[1743982029562,0.838,547.48,547.12,0.29167525]
[1743982029760,0.838,547.48,547.13,0.29167525]
[1743982029962,0.838,547.48,547.14,0.6572124]
[1743982030264,0.838,547.48,547.15,0.29167525]
[1743982030664,0.838,547.48,547.14,0.36553715]
[1743982030865,0.838,547.48,547.15,0.29165803]
[1743982031163,0.838,547.48,547.16,0.29165803]
[1743982031361,0.838,547.48,547.17,0.29165803]
[1743982031564,0.622,547.5,547.15,0.29165803]
[1743982031858,0.622,547.5,547.16,0.29165803]
[1743982032061,0.622,547.5,547.17,0.29165803]
[1743982032365,0.622,547.5,547.18,0.29165803]
[1743982032665,0.622,547.5,547.15,0.29165803]
[1743982032862,0.622,547.5,547.14,0.36553715]
[1743982033059,0.622,547.5,547.15,0.2916874]
[1743982033459,0.622,547.5,547.16,0.2916874]
[1743982033664,0.622,547.5,547.15,0.2916874]
[1743982033864,0.622,547.5,547.16,0.2916874]
[1743982034066,0.622,547.5,547.17,0.2916874]
[1743982034266,0.622,547.5,547.18,0.2916874]
[1743982034461,0.622,547.5,547.19,0.2916874]
[1743982034664,0.622,547.5,547.2,0.2916874]
[1743982034861,0.622,547.5,547.21,0.2916874]
[1743982035063,0.622,547.5,547.22,0.36548371]
[1743982035263,0.622,547.5,547.23,0.2916874]
[1743982035465,0.622,547.5,547.24,0.36547036]
[1743982035662,0.622,547.5,547.25,0.29171946]
[1743982036067,0.622,547.5,547.26,0.365457]
[1743982036263,0.622,547.5,547.27,0.29171946]
[1743982036465,0.622,547.5,547.28,0.36544364]
[1743982036668,0.622,547.5,547.29,0.29171946]
[1743982037765,0.622,547.5,547.28,0.36544364]
[1743982041472,0.622,547.5,547.29,0.29187457]
[1743982042073,0.622,547.5,547.28,0.36544364]
[1743982047272,0.622,547.5,547.29,0.2918905]
[1743982053080,0.622,547.5,547.3,0.36543029]
[1743982053280,0.622,547.5,547.31,0.2918905]
[1743982053482,0.622,547.5,547.32,0.36541694]
[1743982053682,0.622,547.5,547.33,0.2918905]
[1743982055781,0.622,547.5,547.34,0.2918905]
[1743982055984,0.622,547.5,547.33,0.2918905]
[1743982057276,0.889,547.67,547.34,0.2918905]
[1743982057476,0.889,547.67,547.35,0.2918905]
[1743982057680,0.889,547.67,547.32,0.36541694]